Cogmind - Beta 10.2 @@@ ROGUE MODE // 2020.12.06 @ 13:33:00 Player: Perseus Result: Destroyed by B-86 Titan with Hardcell Cannon Performance ------------- Evolutions (6) 3000 Regions Visited (24) 4800 Robots Destroyed (223) 1115 Value Destroyed (9232) 9232 Prototype IDs (47) 940 Alien Tech Used (3) 600 Bonus (2914) 2914 TOTAL SCORE: 22601 Bonus ------- High Alert Combat Kills 747 Follower Combat Kills 1345 Entered Garrisons 200 Used RIF Installer 500 Met Data Miner 300 Met Imprinter 300 Met Zhirov 300 Friendly Fire -778 Cogmind --------- Core Integrity 0/1150 Matter 300/300 Energy 66/100 System Corruption 6% Temperature Cool (9) Movement Core (50) Location -4/Extension Parts ------- > --- POWER (3) -------- (None) > --- PROPULSION (4) --- (None) > --- UTILITY (8) ------ Advanced Heat Sink Advanced Heat Sink Experimental Cooling System Advanced Terrain Scan Processor Advanced Targeting Computer Armor Integrity Analyzer > --- WEAPON (5) ------- (None) > --- INVENTORY (4) ---- Advanced Myomer Leg Advanced Heat Sink Large Storage Unit Improved Trap Extractor Peak State ------------ > --- POWER ------------ Light Antimatter Reactor Heavy Antimatter Reactor > --- PROPULSION ------- Enhanced Flexi-carbon Leg Myomer Leg Advanced Myomer Leg Advanced Myomer Leg > --- UTILITY ---------- Improved Cooling System Large Storage Unit Experimental Sensor Array Improved Signal Interpreter Long-range Terrain Scanner Advanced Terrain Scan Processor Advanced Targeting Computer Advanced Shield Generator > --- WEAPON ----------- Storm Laser Mass Driver > --- INVENTORY -------- Advanced Myomer Leg Improved Trap Extractor Transdimensional Reconstructor High-powered Shock Rifle Long-range Proton Cannon Neutron Cannon Heavy Gauss Cannon Long-range Missile Launcher Improved Datajack Segregator Trap [Rating: 111] Favorites ----------- Power Improved Deuterium Engine Engine Improved Deuterium Engine Power Core Light Nuclear Core Reactor Light Antimatter Reactor Propulsion Titanium Leg Leg Titanium Leg Wheel Wheel Hover Unit Gravmag System Utility Large Storage Unit Device Long-range Terrain Scanner Storage Large Storage Unit Processor Improved Signal Interpreter Hackware Relay Coupler [Sentry] Protection Medium Reflective Plating Weapon Advanced Assault Cannon Energy Gun Storm Laser Energy Cannon Heavy Ion Cannon Ballistic Gun Railgun Ballistic Cannon Advanced Assault Cannon Launcher Long-range Missile Launcher Special Weapon Improved Remote Datajack Slashing Weapon Mining Claw Special Melee Weapon Improved Datajack Build | -11 -10 -10 -10 -9 -8 -7 -7 -7 -7 -6 -6 -6 -6 -6 -5 -5 -5 -5 -5 -4 -4 -4 -4 -4 ------- Run | Scr Mat Min Exi Min Mat Fac Low Low Zio Pro Fac Low Low Dat Pro Fac Upp Upp Zhi Pro Fac Gar Fac Ext Slots Evolved 12 | . . . . . 4 2 . . . . 2 . . . . 2 . . . . 2 . . . Power 2 | . . . . . . . . . . . 1 . . . . . . . . . 1 . . . Propulsion 2 | . . . . . 1 1 . . . . . . . . . . . . . . . . . . Utility 5 | . . . . . 2 1 . . . . 1 . . . . 1 . . . . . . . . Weapon 3 | . . . . . 1 . . . . . . . . . . 1 . . . . 1 . . . Parts Attached 396 | 7 11 5 1 1 43 47 5 28 4 8 9 13 3 . 10 17 12 14 10 16 19 63 34 16 Power 32 | 1 1 . . . 2 5 . . 1 . 1 2 . . 2 3 1 . 1 . 1 6 4 1 Engine 15 | 1 1 . . . 2 2 . . 1 . 1 2 . . 2 2 . . . . . . 1 . Core 9 | . . . . . . 3 . . . . . . . . . 1 . . . . 1 4 . . Reactor 8 | . . . . . . . . . . . . . . . . . 1 . 1 . . 2 3 1 Propulsion 52 | 2 1 1 . 1 9 10 . 3 1 1 . . 1 . . 4 . 1 2 1 1 6 4 3 Treads . | . . . . . . . . . . . . . . . . . . . . . . . . . Leg 45 | 2 1 . . 1 6 7 . 3 1 1 . . 1 . . 4 . 1 2 1 1 6 4 3 Wheel 6 | . . 1 . . 3 2 . . . . . . . . . . . . . . . . . . Hover 1 | . . . . . . 1 . . . . . . . . . . . . . . . . . . Flight . | . . . . . . . . . . . . . . . . . . . . . . . . . Utility 145 | 2 1 3 1 . 7 5 2 14 2 5 6 7 . . 5 5 7 4 5 6 8 30 16 4 Device 100 | 1 . 2 . . 5 5 1 9 1 3 4 5 . . 4 4 6 3 3 6 6 18 13 1 Storage 6 | 1 1 1 1 . . . . . . . . . . . . 1 . . . . . 1 . . Processor 7 | . . . . . 2 . . . 1 . 1 . . . . . . 1 . . . . . 2 Hackware 13 | . . . . . . . . . . . . 1 . . . . 1 . 1 . . 6 3 1 Protection 19 | . . . . . . . 1 5 . 2 1 1 . . 1 . . . 1 . 2 5 . . Artifact . | . . . . . . . . . . . . . . . . . . . . . . . . . Weapon 167 | 2 8 1 . . 25 27 3 11 . 2 2 4 2 . 3 5 4 9 2 9 9 21 10 8 Energy Gun 46 | 1 2 1 . . 8 4 1 . . 1 . 1 . . . 3 2 4 1 3 1 7 4 2 Energy Cannon 31 | . . . . . 1 8 1 1 . 1 . 2 1 . 2 . 2 4 . 3 2 . 2 1 Ballistic Gun 20 | 1 2 . . . 2 4 . . . . . . . . . . . . . . 2 7 . 2 Ballistic Cannon 28 | . 2 . . . 8 4 . 5 . . 1 . . . . . . . . 2 3 . 2 1 Launcher 19 | . . . . . 6 3 1 4 . . . . 1 . 1 . . 1 . 1 . 1 . . Special Weapon 3 | . . . . . . . . . . . . . . . . . . . . . . . 2 1 Impact Weapon . | . . . . . . . . . . . . . . . . . . . . . . . . . Slashing Weapon 2 | . 2 . . . . . . . . . . . . . . . . . . . . . . . Piercing Weapon . | . . . . . . . . . . . . . . . . . . . . . . . . . Special Melee Weapon 18 | . . . . . . 4 . 1 . . 1 1 . . . 2 . . 1 . 1 6 . 1 Unidentified Prototypes 14 | . . 1 . . 1 . . 1 . . . . . . . 3 1 . 5 . . 1 1 . Parts Lost 78 | . 1 . . . 9 12 . 2 . 1 . . . . 2 . . . . . 16 11 5 19 Power 12 | . . . . . . 2 . . . . . . . . . . . . . . 2 4 . 4 Propulsion 17 | . . . . . 2 4 . 1 . 1 . . . . . . . . . . 3 1 1 4 Utility 10 | . . . . . 1 . . . . . . . . . . . . . . . 4 1 2 2 Weapon 39 | . 1 . . . 6 6 . 1 . . . . . . 2 . . . . . 7 5 2 9 Highest Loss Streak 14 | . 1 . . . 4 4 . 1 . 1 . . . . 2 . . . . . 14 3 2 14 Average Slot Usage (%) 93 | . 99 99 100 100 96 94 99 99 99 99 100 99 100 100 98 81 79 83 82 82 82 82 98 93 Engine 7 | . 14 14 14 14 9 3 7 7 6 7 13 13 13 13 13 10 9 5 2 . . . 1 4 Reactor 1 | . . . . . . . . . . . . . . . . . 1 5 7 11 8 3 7 9 Leg 24 | . 27 23 14 24 20 24 23 29 30 29 26 26 26 26 26 22 22 22 22 22 19 17 20 19 Device 16 | . 14 14 14 14 10 15 14 10 14 14 18 16 20 20 19 23 22 21 21 21 15 15 23 23 Storage 6 | . 14 14 14 14 9 7 7 7 7 7 6 6 6 6 6 5 5 5 5 5 5 5 5 4 Processor 12 | . . . . . 15 15 15 15 14 15 13 13 13 13 13 11 11 13 16 16 14 5 5 7 Energy Gun 4 | . 13 14 14 14 4 2 . 2 . . . . . . . 4 4 4 1 4 4 12 13 13 Energy Cannon 4 | . . . . . 1 5 14 6 7 6 6 5 5 6 6 . . . . . 4 . 2 . Ballistic Gun 1 | . 3 . . . 5 8 . . . . . . . . . . . . . . . 6 4 3 Ballistic Cannon 7 | . 8 14 14 14 14 3 7 10 15 15 12 13 13 13 6 . . . . . 7 . 3 2 Naked Turns . | . . . . . . . . . . . . . . . . . . . . . . . . . Heaviest Build 117 | 10 18 19 27 27 43 50 51 54 49 53 64 67 60 59 66 66 70 76 76 90 117 76 86 81 Greatest Support 116 | 20 20 20 16 25 40 58 10 65 60 67 67 67 70 70 70 88 88 91 116 116 113 95 90 100 Greatest Overweight (x) 10 | . 1 1 1 1 9 10 5 4 . 1 . . . . . . . . . . 1 1 1 . Average Overweight (x) . | . . . 1 1 1 . 4 . . . . . . . . . . . . . . . . . Largest Inventory Capacity 10 | 6 8 8 10 10 10 10 10 10 10 10 10 10 10 10 10 10 10 10 10 10 10 10 10 10 Average Capacity 9 | 5 7 7 8 10 10 10 10 10 10 10 10 10 10 10 10 10 10 10 10 10 10 10 10 9 Most Carried 10 | 3 8 8 10 10 10 10 10 10 10 10 10 10 10 10 10 10 10 10 10 10 10 10 10 10 Average Carried 9 | 1 7 7 7 10 9 9 10 9 9 10 9 9 9 10 9 9 9 9 9 9 9 9 9 8 Final Capacity 10 | 6 8 8 10 10 10 10 10 10 10 10 10 10 10 10 10 10 10 10 10 10 10 10 10 4 Final Carried 10 | 3 8 8 10 10 9 10 10 10 10 10 10 10 10 10 10 10 10 10 10 10 9 10 8 4 Class Distribution -------------------- 33% | Scavenger-Skirmisher 18% | Mutant 11% | Skirmisher 11% | Scavenger-Mutant 6% | Commander-Mutant 4% | Derelict-Mutant 3% | Commander-Skirmisher Dominant Class ---------------- Mutant | -10/Materials Mutant | -10/Mines Mutant | -10/Exiles Mutant | -9/Mines Skirmisher | -8/Materials Scavenger-Skirmisher | -7/Factory Scavenger-Skirmisher | -7/Lower Caves Scavenger-Mutant | -7/Lower Caves Derelict-Mutant | -7/Zion Derelict-Skirmisher | -6/Proximity Caves Mutant | -6/Factory Mutant | -6/Lower Caves Commander-Mutant | -6/Lower Caves Commander-Mutant | -6/Data Miner Commander-Skirmisher | -5/Proximity Caves Scavenger-Skirmisher | -5/Factory Scavenger-Skirmisher | -5/Upper Caves Scavenger-Skirmisher | -5/Upper Caves Scavenger-Assassin | -5/Zhirov Scavenger-Skirmisher | -4/Proximity Caves Generator-Mutant | -4/Factory Scavenger-Skirmisher | -4/Garrison Scavenger-Mutant | -4/Factory Scavenger-Mutant | -4/Extension Resources | -11 -10 -10 -10 -9 -8 -7 -7 -7 -7 -6 -6 -6 -6 -6 -5 -5 -5 -5 -5 -4 -4 -4 -4 -4 ----------- Run | Scr Mat Min Exi Min Mat Fac Low Low Zio Pro Fac Low Low Dat Pro Fac Upp Upp Zhi Pro Fac Gar Fac Ext Matter Collected 8181 | 293 324 60 . 70 1230 708 408 983 59 155 67 203 30 . 344 171 130 183 . 359 228 961 944 271 Remotely . | . . . . . . . . . . . . . . . . . . . . . . . . . Salvage Created 10504 | 176 611 6 . 111 1902 1059 355 730 . 187 67 147 99 . 436 656 328 398 . 599 538 496 1306 297 Parts 457 | 12 35 . . 4 108 44 7 27 . 8 4 5 4 . 7 27 5 13 . 25 22 17 77 6 Haulers Intercepted 10 | . 2 . . . 5 . . 1 . . . . . . . 1 . . . . 1 . . . Recyclers Shooed 9 | 1 1 1 . 2 2 1 . . . . . . . . . . . . . . . . 1 . Parts Field Recycled . | . . . . . . . . . . . . . . . . . . . . . . . . . Retrieved Matter . | . . . . . . . . . . . . . . . . . . . . . . . . . Parts Self-Destructed 67 | . . . . . . . 3 13 . 6 . 1 5 . 7 . 1 8 . 23 . . . . Prevented 6 | . . . . . . . 3 1 . . . . . . 2 . . . . . . . . . Kills | -11 -10 -10 -10 -9 -8 -7 -7 -7 -7 -6 -6 -6 -6 -6 -5 -5 -5 -5 -5 -4 -4 -4 -4 -4 ------- Run | Scr Mat Min Exi Min Mat Fac Low Low Zio Pro Fac Low Low Dat Pro Fac Upp Upp Zhi Pro Fac Gar Fac Ext Combat Hostiles Destroyed 144 | . 5 1 . 2 33 18 5 11 . 4 1 1 5 . 4 5 1 5 . 14 6 7 13 3 Guns 38 | . 3 . . . 8 4 . . . . . . . . . 4 1 . . 8 . 5 4 1 Cannons 58 | . 2 1 . 2 16 8 1 5 . 4 1 1 1 . 2 . . . . 2 6 . 6 . AOE 41 | . . . . . 9 6 4 6 . . . . 4 . 2 1 . 5 . 2 . . 2 . Classes Destroyed 21 | 3 5 1 . . 6 1 2 . . . . 2 . . . . . . . . . 1 . . Worker 14 | 2 3 . . . 2 3 . . . . . . . . . . . . . . . . 4 . Builder 10 | . 1 . . . 4 1 . . . . . . . . . . . . . . . . 4 . Tunneler 8 | 4 . . . . 2 . . . . . . . . . . 1 . . . . . . 1 . Hauler 10 | . 2 . . . 5 . . 1 . . . . . . . 1 . . . . 1 . . . Recycler 14 | 1 4 . . 1 2 1 . . . . . . . . . 2 . . . . 1 . 2 . Minesweeper 4 | . . . . . . . 1 . . . . . . . 2 . 1 . . . . . . . Mechanic 2 | . . . . . 1 1 . . . . . . . . . . . . . . . . . . Operator 4 | . . . . . 1 . . . . . . . . . . 1 . . . . 1 . 1 . Watcher 11 | . 1 . . . 4 1 . . . . 1 . . . . 1 . . . . . . 2 1 Swarmer 39 | . 3 . . 2 7 . 4 4 . . . . 5 . . . 1 5 . 6 1 . 1 . Grunt 53 | . 2 . . . 14 12 1 5 . 4 . . . . 3 2 . . . 1 . 6 2 1 Brawler 2 | . . . . . 1 . . . . . . . . . . . . . . 1 . . . . Duelist 4 | . . . . . 1 1 . . . . . . . . 1 . . . . 1 . . . . Sentry 18 | . . . . . 8 3 . 1 . . 1 . . . . 1 . . . 1 . . 3 . Specialist 1 | . . . . . . . . . . . . . . . . . . . . . . 1 . . Hunter 10 | . . . . . 2 . . . . . . . . . . . . . . 2 2 . 1 3 Programmer 17 | . . . . . . 2 . 1 . . . . . . . 2 . . . 2 3 . 7 . Decomposer 18 | . . . . . . . 1 3 . . . 3 . . 3 . 3 5 . . . . . . Packrat 5 | . . . . . . . 2 . . . . . . . . . 3 . . . . . . . Samaritan 5 | . . . . . . . 2 2 . . . . 1 . . . . . . . . . . . Tinkerer 1 | . . . . . . . . . . . . 1 . . . . . . . . . . . . Assembled 1 | . . 1 . . . . . . . . . . . . . . . . . . . . . . Savage 1 | . . . . . . . . . . . . . . . 1 . . . . . . . . . Mutant 1 | . . . . . . . . . . . . 1 . . . . . . . . . . . . Best Kill Streak 12 | 5 6 1 . 1 9 5 4 4 . 3 1 1 4 . 2 3 1 5 . 4 4 2 12 2 Combat Bots Only 8 | . 2 1 . 1 8 4 4 4 . 3 1 1 4 . 2 2 1 5 . 4 2 2 4 2 Max Kills in Single Turn 3 | 1 1 1 . 1 3 3 2 2 . 1 1 1 2 . 1 1 1 3 . 1 1 1 3 1 Gunslinging . | . . . . . . . . . . . . . . . . . . . . . . . . . Exploded 3 | . . . . . 3 2 2 2 . . . . 2 . 1 1 . 3 . 1 . . 2 . Melee . | . . . . . . . . . . . . . . . . . . . . . . . . . Uniques/NPCs Destroyed . | . . . . . . . . . . . . . . . . . . . . . . . . . Combat | -11 -10 -10 -10 -9 -8 -7 -7 -7 -7 -6 -6 -6 -6 -6 -5 -5 -5 -5 -5 -4 -4 -4 -4 -4 -------- Run | Scr Mat Min Exi Min Mat Fac Low Low Zio Pro Fac Low Low Dat Pro Fac Upp Upp Zhi Pro Fac Gar Fac Ext Damage Taken 12691 | . 331 34 . 67 1481 1868 114 579 . 251 23 49 42 . 38 171 13 10 . 729 2393 1070 1298 2130 Core 1915 | . 93 . . 32 180 268 13 86 . 62 . . . . . 15 . . . 70 350 132 122 492 Absorbed by Shields 532 | . . . . . . . . . . . . . . . . 61 5 4 . 266 196 . . . Core Remaining (%) 74 | 100 . . . 50 67 . . . . 38 . . . . 100 . . . . 91 . . . . Volleys Fired 765 | 23 60 5 . 10 122 73 24 94 . 26 11 46 22 . 28 19 14 15 . 32 24 42 55 20 Largest 5 | 2 2 2 . 2 3 3 3 3 . 3 3 3 1 . 3 1 1 1 . 3 5 5 5 5 Hottest 349 | 60 75 85 . 85 163 176 176 168 . 152 152 152 65 . 198 250 250 250 . 250 349 330 339 306 Shots Fired 1566 | 46 104 10 . 20 273 170 35 157 . 44 21 48 22 . 55 19 14 15 . 38 78 133 195 69 Gun 698 | 46 51 5 . 10 94 82 . 34 . . . . . . . 19 12 10 . 24 16 133 112 50 Cannon 805 | . 53 5 . 10 163 83 31 106 . 44 21 48 19 . 53 . 2 2 . 11 62 . 75 17 Launcher 53 | . . . . . 16 5 4 17 . . . . 3 . 2 . . 3 . 3 . . . . Special 10 | . . . . . . . . . . . . . . . . . . . . . . . 8 2 Kinetic 673 | 23 60 5 . 10 170 94 3 62 . 18 10 2 . . 27 . . . . 6 39 42 76 26 Thermal 601 | 23 44 5 . 10 55 46 17 44 . 26 11 46 19 . 26 19 14 12 . 29 20 91 34 10 Explosive 35 | . . . . . . 3 4 17 . . . . 3 . 2 . . 3 . 3 . . . . Electromagnetic 247 | . . . . . 48 27 11 34 . . . . . . . . . . . . 19 . 77 31 Robot Hit Streak 17 | 5 9 4 . 3 8 17 8 9 . 7 5 2 7 . 10 7 6 5 . 7 7 9 11 16 Robot Miss Streak 18 | 3 5 2 . 4 11 8 2 4 . 2 1 2 2 . 3 11 8 10 . 13 18 4 7 5 Penetration Max . | . . . . . . . . . . . . . . . . . . . . . . . . . Secondary Targets 1 | . . . . . . . . . . . . . . . . . . . . . . 1 . . Max Gunslinging Chain 1 | . . . . . . . . . . . . . . . . . . . . . . 1 . . Shots Hit Robots 856 | 26 44 6 . 8 141 94 12 82 . 18 10 17 8 . 34 18 12 10 3 26 35 81 115 56 Core Hits 465 | 10 22 2 . 3 82 50 14 36 . 9 3 8 7 . 19 29 13 16 . 33 18 25 50 16 Critical Hits 9 | . . . . 1 . . . . . . . . . . . . . . . . 1 . 5 2 Critical Kills 7 | . . . . 1 . . . . . . . . . . . . . . . . 1 . 4 1 Critical Parts Destroyed 1 | . . . . . . . . . . . . . . . . . . . . . . . 1 . Melee Attacks 55 | . 12 . . . . 1 . 2 . . . 5 . . . . . . 3 . . 20 . 12 Impact . | . . . . . . . . . . . . . . . . . . . . . . . . . Slashing 12 | . 12 . . . . . . . . . . . . . . . . . . . . . . . Piercing . | . . . . . . . . . . . . . . . . . . . . . . . . . Sneak Attacks 26 | . . . . . . 1 . 2 . . . 5 . . . . . . 3 . . 3 . 12 Combat Hostiles 4 | . . . . . . 1 . . . . . . . . . . . . . . . 3 . . Follow-up Attacks . | . . . . . . . . . . . . . . . . . . . . . . . . . Damage Inflicted 25028 | 271 575 53 . 101 3949 2795 615 2042 . 394 229 297 728 . 1066 1489 526 509 . 1855 1311 1263 3420 1540 Guns 9711 | 271 300 38 . 50 984 682 . 345 . . . . . . . 1227 526 270 . 1232 306 1263 1354 863 Cannons 9183 | . 275 15 . 51 1641 1170 347 1109 . 394 229 297 216 . 797 . . . . 67 965 . 1289 321 Explosions 6108 | . . . . . 1305 943 268 588 . . . . 512 . 269 262 . 239 . 556 33 . 777 356 Melee . | . . . . . . . . . . . . . . . . . . . . . . . . . Ramming 26 | . . . . . 19 . . . . . . . . . . . . . . . 7 . . . Kinetic 6940 | 82 293 15 . 51 1582 882 27 628 . 232 150 . . . 474 . . . . 32 364 502 1182 444 Thermal 10852 | 189 282 38 . 50 923 973 109 635 . 162 79 297 216 . 323 1489 526 270 . 1267 561 761 1192 510 Explosive 2658 | . . . . . 69 278 268 434 . . . . 512 . 269 . . 239 . 556 33 . . . Electromagnetic 4552 | . . . . . 1356 662 211 345 . . . . . . . . . . . . 346 . 1046 586 Impact . | . . . . . . . . . . . . . . . . . . . . . . . . . Slashing . | . . . . . . . . . . . . . . . . . . . . . . . . . Piercing . | . . . . . . . . . . . . . . . . . . . . . . . . . Highest Corruption 9 | . . . . . . 4 4 4 4 . . . . . . . . . . 2 2 3 9 8 Average Corruption 3 | . . . . . . 2 4 4 4 . . . . . . . . . . 1 2 2 5 7 Corruption Purged 4 | . . . . . . . . . . . . . . . . . . . . . . . 1 3 Effects 237 | . . . . . . 14 44 74 4 . . . . . . . . . . 17 . 27 31 26 Message Errors 51 | . . . . . . 2 10 19 . . . . . . . . . . . 2 . 5 8 5 Matter Fused 52 | . . . . . . . 11 21 1 . . . . . . . . . . . . 7 9 3 Heat Flow Errors 37 | . . . . . . 3 5 8 2 . . . . . . . . . . 5 . 10 2 2 Energy Discharges 29 | . . . . . . 1 4 15 1 . . . . . . . . . . 3 . 1 2 2 Data Loss (minor) 30 | . . . . . . 6 11 3 . . . . . . . . . . . 5 . 1 3 1 Misfires 1 | . . . . . . . . . . . . . . . . . . . . . . . . 1 Targeting Errors 34 | . . . . . . 2 3 7 . . . . . . . . . . . 2 . 3 6 11 Weapon Failures 3 | . . . . . . . . 1 . . . . . . . . . . . . . . 1 1 Overload Shots . | . . . . . . . . . . . . . . . . . . . . . . . . . Overflow Damage 791 | . . . . . 149 30 29 123 . . . 10 72 . 108 75 . . . 40 1 . 93 61 Projectiles 337 | . . . . . 36 17 4 58 . . . 10 61 . 89 . . . . . 1 . 61 . Explosions 454 | . . . . . 113 13 25 65 . . . . 11 . 19 75 . . . 40 . . 32 61 Melee . | . . . . . . . . . . . . . . . . . . . . . . . . . Knockbacks 39 | . 2 . . . 14 3 . 6 . 3 . . . . 4 . . . . . 3 . 3 1 Impact . | . . . . . . . . . . . . . . . . . . . . . . . . . Kinetic 38 | . 2 . . . 13 3 . 6 . 3 . . . . 4 . . . . . 3 . 3 1 Secondary 1 | . . . . . 1 . . . . . . . . . . . . . . . . . . . Self-Inflicted Damage 333 | . . . . . 81 . . 102 . . . . . . . . . . . . . . 68 82 Shots 7 | . . . . . 2 . . 3 . . . . . . . . . . . . . . 1 1 Rammed 1 | . . . . . 1 . . . . . . . . . . . . . . . . . . . Targets Rammed 6 | . . . . . 4 . . . . . . . . . . . . . . . 2 . . . Kicked 5 | . . . . . 3 . . . . . . . . . . . . . . . 2 . . . Crushed . | . . . . . . . . . . . . . . . . . . . . . . . . . Highest Temperature 387 | 60 154 77 . 152 335 387 216 300 230 364 9 27 . . 48 162 72 88 . 214 273 237 208 162 Average Temperature 76 | 25 38 39 . 77 80 94 59 98 106 115 6 18 . . 25 46 31 36 . 71 135 77 48 106 Received Heat Transfer 2174 | . 153 20 . . 423 756 27 207 . 102 . 30 . . 18 30 . . . 45 . 144 51 168 Effects 12 | . . . . . 4 6 . 1 . 1 . . . . . . . . . . . . . . Shutdowns 1 | . . . . . . . . . . 1 . . . . . . . . . . . . . . Energy Bleed 3 | . . . . . 1 1 . 1 . . . . . . . . . . . . . . . . Interference 6 | . . . . . 3 3 . . . . . . . . . . . . . . . . . . Matter Decay 2 | . . . . . . 2 . . . . . . . . . . . . . . . . . . Siege Activations . | . . . . . . . . . . . . . . . . . . . . . . . . . Robots Corrupted 7 | . . . . . . . 1 2 . . . . . . . . . . . . . . 1 3 Combat Hostiles 3 | . . . . . . . . . . . . . . . . . . . . . . . 1 2 Parts Fried 24 | . . . . . 2 . 1 7 . . . . 1 . . . 1 . . . 3 . 4 5 Impact Corruptions . | . . . . . . . . . . . . . . . . . . . . . . . . . Robots Melted 4 | . . . . . . . . . . . . . . . . . . . . 2 . 2 . . Combat Hostiles 4 | . . . . . . . . . . . . . . . . . . . . 2 . 2 . . Parts Melted 22 | . . . . . 3 1 . . . 1 . 2 1 . . 3 . . . 4 . 7 . . Heat Transferred 15569 | 425 650 111 . 148 1830 1251 148 866 . 222 111 407 296 . 518 1875 775 400 . 1775 475 1357 1355 574 Parts Sabotaged . | . . . . . . . . . . . . . . . . . . . . . . . . . Parts Stolen . | . . . . . . . . . . . . . . . . . . . . . . . . . Parts Stripped . | . . . . . . . . . . . . . . . . . . . . . . . . . Power Chain Reactions 12 | . . . . . 6 2 . 1 . . . . . . . . . . . . . . 2 1 Missiles Intercepted . | . . . . . . . . . . . . . . . . . . . . . . . . . Alert | -11 -10 -10 -10 -9 -8 -7 -7 -7 -7 -6 -6 -6 -6 -6 -5 -5 -5 -5 -5 -4 -4 -4 -4 -4 ------- Run | Scr Mat Min Exi Min Mat Fac Low Low Zio Pro Fac Low Low Dat Pro Fac Upp Upp Zhi Pro Fac Gar Fac Ext Peak Influence 929 | 35 259 56 . 56 929 701 . . . . 106 . . . . 844 . . . . 360 617 649 457 Initial 422 | . 22 56 . . 21 422 . . . . 50 . . . . . . . . . 94 56 323 298 Average 381 | 11 145 56 . 45 464 581 . . . . 73 . . . . 488 . . . . 208 382 463 292 Maximum Alert Level 3 | . 1 . . . 3 3 . . . . . . . . . 3 . . . . 1 2 2 2 Low Security (%) 30 | 100 73 100 . 100 12 . . . . . 100 . . . . 23 . . . . 53 33 . 19 Level 1 22 | . 26 . . . 43 . . . . . . . . . . 1 . . . . 46 13 42 68 Level 2 39 | . . . . . 20 99 . . . . . . . . . 51 . . . . . 53 57 11 Level 3 7 | . . . . . 23 . . . . . . . . . . 23 . . . . . . . . Level 4 . | . . . . . . . . . . . . . . . . . . . . . . . . . Level 5 . | . . . . . . . . . . . . . . . . . . . . . . . . . High Security . | . . . . . . . . . . . . . . . . . . . . . . . . . Max Security . | . . . . . . . . . . . . . . . . . . . . . . . . . Squads Dispatched 31 | . 3 1 . . 6 6 . . . . 2 . . . . 4 . . . 1 2 . 4 2 Investigation 12 | . 3 . . . 4 1 . . . . 2 . . . . . . . . . 1 . 1 . Extermination 7 | . . . . . . 2 . . . . . . . . . 2 . . . . 1 . 2 . Reinforcement 9 | . . . . . 2 2 . . . . . . . . . 2 . . . . . . 1 2 Assault 3 | . . 1 . . . 1 . . . . . . . . . . . . . 1 . . . . Garrison . | . . . . . . . . . . . . . . . . . . . . . . . . . Intercept . | . . . . . . . . . . . . . . . . . . . . . . . . . Construction Impeded 4 | . . . . . 1 1 . . . . . . . . . 1 . . . . . . 1 . Haulers Reinforced 1 | . . . . . . 1 . . . . . . . . . . . . . . . . . . Stealth | -11 -10 -10 -10 -9 -8 -7 -7 -7 -7 -6 -6 -6 -6 -6 -5 -5 -5 -5 -5 -4 -4 -4 -4 -4 --------- Run | Scr Mat Min Exi Min Mat Fac Low Low Zio Pro Fac Low Low Dat Pro Fac Upp Upp Zhi Pro Fac Gar Fac Ext Distress Signals 15 | . 2 1 . . 3 2 . . . . . . . . . . . . . . 4 . 3 . Communications Jammed . | . . . . . . . . . . . . . . . . . . . . . . . . . Distress Signals . | . . . . . . . . . . . . . . . . . . . . . . . . . Times Spotted 268 | . 14 3 . 3 55 25 7 12 . 7 2 2 1 . 9 14 1 1 . 24 20 27 25 16 Peak Tracking Total 16 | . 4 3 . 3 6 5 5 5 . 4 1 1 2 . 4 4 1 1 . 9 16 4 6 6 Tactical Retreats 22 | . 1 . . . 3 2 4 3 . 1 . . . . 1 . . . . 7 . . . . Traps | -11 -10 -10 -10 -9 -8 -7 -7 -7 -7 -6 -6 -6 -6 -6 -5 -5 -5 -5 -5 -4 -4 -4 -4 -4 ------- Run | Scr Mat Min Exi Min Mat Fac Low Low Zio Pro Fac Low Low Dat Pro Fac Upp Upp Zhi Pro Fac Gar Fac Ext Traps Triggered 18 | . 4 . . . 1 4 1 . . . . . . . . 3 . . . . 1 3 . 1 Indirectly 1 | . . . . . 1 . . . . . . . . . . . . . . . . . . . Trap Hack Attempts 96 | . . . . . . 46 . . . . 15 . . . . 16 . . . . 11 8 . . Triggered 2 | . . . . . . . . . . . . . . . . . . . . . . 2 . . Disarmed 2 | . . . . . . 1 . . . . . . . . . . . . . . . 1 . . Reprogrammed 5 | . . . . . . 2 . . . . 1 . . . . 1 . . . . 1 . . . Reused 4 | . . . . . 1 . . . . . . . . . . . 1 . . 1 . 1 . . Traps Extracted 2 | . . . . . . . . . . . . . . . . 1 . . . . 1 . . . Installed 5 | . . . . . 2 . . . . . . . . . . . 1 . . 1 . 1 . . Triggered 11 | . . . . . 2 . 3 . . . . 1 . . 2 . 1 . . 1 . 1 . . Exploded 1 | . . . . . . 1 . . . . . . . . . . . . . . . . . . Machines | -11 -10 -10 -10 -9 -8 -7 -7 -7 -7 -6 -6 -6 -6 -6 -5 -5 -5 -5 -5 -4 -4 -4 -4 -4 ---------- Run | Scr Mat Min Exi Min Mat Fac Low Low Zio Pro Fac Low Low Dat Pro Fac Upp Upp Zhi Pro Fac Gar Fac Ext Machines Disabled 74 | . 7 . . . 5 21 . 2 . . 4 2 . . . 14 . . . . 4 7 6 2 Max in Single Turn 14 | . 1 . . . 2 14 . 1 . . 4 1 . . . 4 . . . . 2 2 5 1 Garrison Access 1 | . . . . . . 1 . . . . . . . . . . . . . . . . . . Garrison Relay 4 | . . . . . . . . . . . . . . . . . . . . . . 4 . . Phase Generator 1 | . . . . . . . . . . . . . . . . . . . . . . 1 . . Machines Sabotaged . | . . . . . . . . . . . . . . . . . . . . . . . . . Garrisons Compromised . | . . . . . . . . . . . . . . . . . . . . . . . . . Overloaded Fab Kills . | . . . . . . . . . . . . . . . . . . . . . . . . . Fab Network Shutdowns 1 | . . . . . . . . . . . . . . . . 1 . . . . . . . . Hacking | -11 -10 -10 -10 -9 -8 -7 -7 -7 -7 -6 -6 -6 -6 -6 -5 -5 -5 -5 -5 -4 -4 -4 -4 -4 --------- Run | Scr Mat Min Exi Min Mat Fac Low Low Zio Pro Fac Low Low Dat Pro Fac Upp Upp Zhi Pro Fac Gar Fac Ext Machines Accessed 64 | . 10 . . . 13 5 1 1 1 . 2 2 3 3 . 6 . 2 5 . 3 . 4 3 Terminals 32 | . 8 . . . 8 3 . 1 . . . . . . . 3 . 1 . . 2 . 4 2 Fabricators 3 | . . . . . . . . . . . 1 . . . . 2 . . . . . . . . Repair Stations 1 | . . . . . 1 . . . . . . . . . . . . . . . . . . . Recycling Units 7 | . 2 . . . 2 1 . . . . 1 . . . . . . . . . . . . 1 Scanalyzers 3 | . . . . . 2 . . . . . . . . . . 1 . . . . . . . . Garrison Access 2 | . . . . . . 1 . . . . . . . . . . . . . . 1 . . . Total Hacks 176 | . 19 . . . 30 12 6 1 5 . 5 2 8 20 . 19 . 2 18 . 6 . 9 14 Successful 117 | . 12 . . . 15 5 6 1 5 . 2 2 8 20 . 10 . 2 18 . 3 . 2 6 Failed 59 | . 7 . . . 15 7 . . . . 3 . . . . 9 . . . . 3 . 7 8 Catastrophic 10 | . 1 . . . 3 1 . . . . 1 . . . . 1 . . . . 1 . 1 1 Database Lockouts . | . . . . . . . . . . . . . . . . . . . . . . . . . Manual 84 | . 17 . . . 22 8 . . . . 1 . . . . 12 . . . . 3 . 7 14 Terminals 85 | . 17 . . . 21 9 . 1 . . . . . . . 13 . 1 . . 4 . 9 10 Fabricators 7 | . . . . . . . . . . . 4 . . . . 3 . . . . . . . . Repair Stations 2 | . . . . . 2 . . . . . . . . . . . . . . . . . . . Recycling Units 10 | . 2 . . . 2 1 . . . . 1 . . . . . . . . . . . . 4 Scanalyzers 8 | . . . . . 5 . . . . . . . . . . 3 . . . . . . . . Garrison Access 4 | . . . . . . 2 . . . . . . . . . . . . . . 2 . . . Terminal Hacks 72 | . 3 . . . 2 1 6 1 5 . . 2 8 20 . 1 . 2 18 . 1 . 1 1 Record 27 | . . . . . . . 6 1 . . . . 6 6 . . . 1 6 . 1 . . . Part Schematic 17 | . . . . . . . . . 5 . . . . 8 . . . . 4 . . . . . Robot Schematic 3 | . . . . . . . . . . . . . . 3 . . . . . . . . . . Robot Analysis 7 | . 1 . . . 1 . . . . . . . . . . . . . 4 . . . . 1 Prototype ID Bank 10 | . 2 . . . 1 . . . . . . . . 3 . . . . 4 . . . . . Open Door 5 | . . . . . . . . . . . . 2 2 . . . . 1 . . . . . . Branch Access Points 2 | . . . . . . 1 . . . . . . . . . . . . . . . . 1 . Unreport Threat 1 | . . . . . . . . . . . . . . . . 1 . . . . . . . . Fabricator Hacks 3 | . . . . . . . . . . . 1 . . . . 2 . . . . . . . . Load Schematic 2 | . . . . . . . . . . . 1 . . . . 1 . . . . . . . . Build 1 | . . . . . . . . . . . . . . . . 1 . . . . . . . . Repair Station Hacks . | . . . . . . . . . . . . . . . . . . . . . . . . . Recycling Unit Hacks . | . . . . . . . . . . . . . . . . . . . . . . . . . Scanalyzer 6 | . . . . . 4 . . . . . . . . . . 2 . . . . . . . . Insert Component 3 | . . . . . 2 . . . . . . . . . . 1 . . . . . . . . Analyze 3 | . . . . . 2 . . . . . . . . . . 1 . . . . . . . . Garrison Access Hacks 2 | . . . . . . 1 . . . . . . . . . . . . . . 1 . . . Unlock Access 1 | . . . . . . . . . . . . . . . . . . . . . 1 . . . Seal Access 1 | . . . . . . 1 . . . . . . . . . . . . . . . . . . Unauthorized Hacks 34 | . 9 . . . 9 3 . . . . 1 . . . . 5 . . . . 1 . 1 5 Terminals 25 | . 7 . . . 6 3 . . . . . . . . . 5 . . . . 1 . 1 2 Track 1 | . 1 . . . . . . . . . . . . . . . . . . . . . . . Botnet 18 | . 5 . . . 4 3 . . . . . . . . . 3 . . . . 1 . 1 1 Detonate 1 | . . . . . . . . . . . . . . . . 1 . . . . . . . . Operators 5 | . 1 . . . 2 . . . . . . . . . . 1 . . . . . . . 1 Fabricators . | . . . . . . . . . . . . . . . . . . . . . . . . . Repair Stations 1 | . . . . . 1 . . . . . . . . . . . . . . . . . . . Mechanics 1 | . . . . . 1 . . . . . . . . . . . . . . . . . . . Recycling Units 8 | . 2 . . . 2 . . . . . 1 . . . . . . . . . . . . 3 Monitor 1 | . . . . . . . . . . . . . . . . . . . . . . . . 1 Reject 1 | . . . . . . . . . . . . . . . . . . . . . . . . 1 Recyclers 1 | . . . . . . . . . . . . . . . . . . . . . . . . 1 Tunnel 5 | . 2 . . . 2 . . . . . 1 . . . . . . . . . . . . . Scanalyzers . | . . . . . . . . . . . . . . . . . . . . . . . . . Garrison Access . | . . . . . . . . . . . . . . . . . . . . . . . . . Data Cores Recovered 1 | . . . . . . . . . . . . . . . . . . . . . 1 . . . Used 1 | . . . . . . . . . . . . . . . . . . . . . 1 . . . Hacking Detections 40 | . 8 . . . 11 5 . . . . 1 . . . . 6 . . . . 2 . 4 3 Full Trace Events 3 | . . . . . 1 . . . . . 1 . . . . . . . . . . . 1 . Feedback Events . | . . . . . . . . . . . . . . . . . . . . . . . . . Feedback Blocked . | . . . . . . . . . . . . . . . . . . . . . . . . . Robot Schematics Acquired 3 | . . . . . . . . . . . . . . 3 . . . . . . . . . . Robots Built . | . . . . . . . . . . . . . . . . . . . . . . . . . Matter . | . . . . . . . . . . . . . . . . . . . . . . . . . Time . | . . . . . . . . . . . . . . . . . . . . . . . . . Total Robot Build Rating . | . . . . . . . . . . . . . . . . . . . . . . . . . Part Schematics Acquired 20 | . . . . . 2 . . . 5 . . . . 8 . 1 . . 4 . . . . . Parts Built 1 | . . . . . . . . . . . . . . . . 1 . . . . . . . . Matter 285 | . . . . . . . . . . . . . . . . 285 . . . . . . . . Time 152 | . . . . . . . . . . . . . . . . 152 . . . . . . . . Total Part Build Rating 5 | . . . . . . . . . . . . . . . . 5 . . . . . . . . Parts Repaired . | . . . . . . . . . . . . . . . . . . . . . . . . . Time . | . . . . . . . . . . . . . . . . . . . . . . . . . Parts Recycled . | . . . . . . . . . . . . . . . . . . . . . . . . . Recycled Matter . | . . . . . . . . . . . . . . . . . . . . . . . . . Retrieved Matter . | . . . . . . . . . . . . . . . . . . . . . . . . . Retrieved Components . | . . . . . . . . . . . . . . . . . . . . . . . . . Parts Scanalyzed 3 | . . . . . 2 . . . . . . . . . . 1 . . . . . . . . Part Schematics Acquired 3 | . . . . . 2 . . . . . . . . . . 1 . . . . . . . . Parts Damaged 1 | . . . . . . . . . . . . . . . . 1 . . . . . . . . Bothacking | -11 -10 -10 -10 -9 -8 -7 -7 -7 -7 -6 -6 -6 -6 -6 -5 -5 -5 -5 -5 -4 -4 -4 -4 -4 ------------ Run | Scr Mat Min Exi Min Mat Fac Low Low Zio Pro Fac Low Low Dat Pro Fac Upp Upp Zhi Pro Fac Gar Fac Ext Used RIF Installer 1 | . . . . . . . . . . . . . . . . . . . . . . 1 . . Robots Hacked 25 | . . . . . . . . 1 . . . . . . . . . . 3 . . 12 6 3 Non-combat 4 | . . . . . . . . 1 . . . . . . . . . . . . . . 2 1 Combat 21 | . . . . . . . . . . . . . . . . . . . 3 . . 12 4 2 Robot Hacks Applied 26 | . . . . . . . . 1 . . . . . . . . . . 3 . . 12 6 4 parse_system 4 | . . . . . . . . 1 . . . . . . . . . . 3 . . . . . map_walls 1 | . . . . . . . . . . . . . . . . . . . . . . . 1 . purge_threat 1 | . . . . . . . . . . . . . . . . . . . . . . . . 1 scatter_targeting 1 | . . . . . . . . . . . . . . . . . . . . . . 1 . . reboot_system 1 | . . . . . . . . . . . . . . . . . . . . . . 1 . . go_dormant 1 | . . . . . . . . . . . . . . . . . . . . . . . 1 . formatsys_low 1 | . . . . . . . . . . . . . . . . . . . . . . . . 1 formatsys_high 16 | . . . . . . . . . . . . . . . . . . . . . . 10 4 2 Relay Couplers Released 17 | . . . . . . . . . . . . . . . . . . . . . . 17 . . Machine Destruction 17 | . . . . . . . . . . . . . . . . . . . . . . 17 . . Attached 10 | . . . . . . . . . . . . . . . . . . . . . . 6 3 1 Robots Rewired 9 | . . . . . . 1 . 1 . . . 4 . . . . . . . . . . . 3 Allies Hacked . | . . . . . . . . . . . . . . . . . . . . . . . . . Hacks Repelled . | . . . . . . . . . . . . . . . . . . . . . . . . . Allies | -11 -10 -10 -10 -9 -8 -7 -7 -7 -7 -6 -6 -6 -6 -6 -5 -5 -5 -5 -5 -4 -4 -4 -4 -4 -------- Run | Scr Mat Min Exi Min Mat Fac Low Low Zio Pro Fac Low Low Dat Pro Fac Upp Upp Zhi Pro Fac Gar Fac Ext Total Allies 34 | . . 1 . 1 . 1 . 1 . . . 4 . . 1 . . . . . . 10 4 11 Largest Group 8 | . . 1 1 1 1 1 . 1 1 1 . 4 4 4 5 1 . . . . . 6 6 8 Highest-Rated Group 343 | . . 31 31 31 31 20 . 58 58 58 . 91 91 91 178 94 . . . . . 179 179 343 Highest-Rated Ally 94 | . . 31 31 31 31 20 . 58 58 58 . 31 31 31 94 94 . . . . . 49 56 49 Total Orders 41 | . . . . . . . . 5 2 5 . 2 9 . . . . . . . . 8 8 2 STAY 22 | . . . . . . . . 3 1 3 . 1 4 . . . . . . . . 5 4 1 ROAM 1 | . . . . . . . . . . . . . 1 . . . . . . . . . . . FOLLOW 18 | . . . . . . . . 2 1 2 . 1 4 . . . . . . . . 3 4 1 Ally Attacks 227 | . . . . 2 31 . . . . . . 2 1 . 44 15 . . . . . 53 31 48 Total Damage 6481 | . . . . 41 338 . . . . . . 43 22 . 1085 1638 . . . . . 1078 903 1333 Kills 43 | . . . . 1 3 . . . . . . 1 1 . 8 11 . . . . . 8 4 6 Allies Corrupted 3 | . . . . . . . . . . . . . . . 1 . . . . . . 1 1 . Allies Melted . | . . . . . . . . . . . . . . . . . . . . . . . . . Intel | -11 -10 -10 -10 -9 -8 -7 -7 -7 -7 -6 -6 -6 -6 -6 -5 -5 -5 -5 -5 -4 -4 -4 -4 -4 ------- Run | Scr Mat Min Exi Min Mat Fac Low Low Zio Pro Fac Low Low Dat Pro Fac Upp Upp Zhi Pro Fac Gar Fac Ext Robot Analysis Total 7 | . 1 . . . 1 . . . . . . . . . . . . . 4 . . . . 1 Derelict Logs Recovered 17 | . . . . . . . 1 3 1 1 . 2 3 . 2 . 1 3 . . . . . . Drone Launches . | . . . . . . . . . . . . . . . . . . . . . . . . . Drone Recoveries . | . . . . . . . . . . . . . . . . . . . . . . . . . Exploration | -11 -10 -10 -10 -9 -8 -7 -7 -7 -7 -6 -6 -6 -6 -6 -5 -5 -5 -5 -5 -4 -4 -4 -4 -4 ------------- Run | Scr Mat Min Exi Min Mat Fac Low Low Zio Pro Fac Low Low Dat Pro Fac Upp Upp Zhi Pro Fac Gar Fac Ext Turns Passed 29845 | 163 954 268 433 149 2298 1809 1607 3183 1415 1453 614 2122 1303 123 1806 795 2278 1328 281 1845 461 1680 1049 428 Spaces Moved 19796 | 72 597 187 390 78 1291 948 1217 1883 1117 997 427 1440 974 89 1274 482 1643 1018 209 1341 245 975 641 261 Core 27 | 6 . . . . 7 3 . . . . . . . . . . . . . . . . . 11 Treads . | . . . . . . . . . . . . . . . . . . . . . . . . . Legs 17373 | 66 597 121 . 69 635 931 . 1832 1117 997 427 1440 974 89 1274 482 1643 1018 209 1341 245 975 641 250 Wheels 2396 | . . 66 390 9 649 14 1217 51 . . . . . . . . . . . . . . . . Hover . | . . . . . . . . . . . . . . . . . . . . . . . . . Flight . | . . . . . . . . . . . . . . . . . . . . . . . . . Fastest Speed 50 | 50 120 110 110 110 110 110 120 120 122 123 125 125 125 127 127 122 122 120 120 120 120 120 120 50 Average Speed 124 | 114 120 119 110 145 127 133 120 138 122 123 125 125 126 127 127 123 122 121 120 120 120 120 120 117 Slowest Speed 550 | 120 150 150 110 150 500 550 130 190 123 155 125 125 127 127 127 127 122 122 120 120 150 150 150 120 Overloaded Moves . | . . . . . . . . . . . . . . . . . . . . . . . . . Propulsion Burnouts . | . . . . . . . . . . . . . . . . . . . . . . . . . Robots Hopped 17 | . . . . . . . . . . . . . . . 17 . . . . . . . . . Cave-ins Triggered . | . . . . . . . . . . . . . . . . . . . . . . . . . Teleports 1 | . . . . . . . . . . . . . . . . . . . . . . 1 . . Exploration Rate (%) 64 | 5 99 25 80 18 96 28 97 99 87 93 8 97 97 68 95 14 98 95 60 93 7 93 15 45 Regions Visited 24 Branch Regions 16 Pre-discovered Areas 14 | . 2 . . . 2 . 1 . 1 . 1 1 1 1 . . . 1 3 . . . . . Known Exits Taken 18 | . . . . . 1 1 1 1 1 1 1 1 1 1 1 1 1 1 1 1 1 . 1 . Unknown Exits Taken 5 | 1 1 1 1 1 . . . . . . . . . . . . . . . . . . . . Scrap Searched 34 | . . . . . . . 4 4 5 1 . 3 6 . 3 . 2 5 . 1 . . . . Spaces Dug 55 | . 4 . . . . 4 3 19 . 5 . 6 4 . . . 2 5 . 2 . . 1 . Terrain Destroyed 764 | . 4 . . . 76 44 56 143 . 10 . 9 30 . 27 23 2 27 . 51 52 83 99 28 Melee 4 | . 4 . . . . . . . . . . . . . . . . . . . . . . . Projectile 189 | . . . . . 30 7 4 18 . 10 . 9 5 . 7 . 2 2 . 6 32 7 42 8 AOE 571 | . . . . . 46 37 52 125 . . . . 25 . 20 23 . 25 . 45 20 76 57 20 Terrain Rammed . | . . . . . . . . . . . . . . . . . . . . . . . . . Walls Destroyed . | . . . . . . . . . . . . . . . . . . . . . . . . . Machines Disabled . | . . . . . . . . . . . . . . . . . . . . . . . . . Actions | -11 -10 -10 -10 -9 -8 -7 -7 -7 -7 -6 -6 -6 -6 -6 -5 -5 -5 -5 -5 -4 -4 -4 -4 -4 --------- Run | Scr Mat Min Exi Min Mat Fac Low Low Zio Pro Fac Low Low Dat Pro Fac Upp Upp Zhi Pro Fac Gar Fac Ext Total 23484 | 111 707 223 395 94 1703 1351 1326 2318 1160 1180 489 1712 1026 99 1394 632 1886 1078 239 1497 345 1377 805 337 Wait 1858 | . 8 13 . 5 201 178 80 300 32 147 20 184 21 11 81 51 176 14 . 84 26 185 37 4 Move 19740 | 71 596 186 389 77 1290 947 1216 1882 1116 996 426 1439 973 88 1240 481 1642 1017 208 1340 245 974 640 261 Hop 16 | . . . . . . . . . . . . . . . 16 . . . . . . . . . Pick Up 216 | 10 13 8 3 . 20 24 . 4 1 . 5 4 3 . 8 11 16 3 5 6 11 40 13 8 Fast Attach 110 | . 2 2 . 1 10 10 1 6 3 4 . 5 1 . 4 7 8 5 8 7 2 10 13 1 Attach 151 | 7 3 2 . . 12 17 . 3 . . 4 2 . . 3 5 4 9 3 9 13 32 12 11 Detach 27 | . . . . . . 1 . . . . 1 . . . . 1 2 7 . 5 . 6 1 3 Swap 138 | . 6 1 1 . 21 20 4 19 1 4 5 6 2 . 3 5 1 . . . 4 22 9 4 Drop 243 | . 7 6 2 1 21 20 1 8 7 3 2 10 4 . 11 21 22 8 12 13 7 25 24 8 Fire 765 | 23 60 5 . 10 122 73 24 94 . 26 11 46 22 . 28 19 14 15 . 32 24 42 55 20 Melee 55 | . 12 . . . . 1 . 2 . . . 5 . . . . . . 3 . . 20 . 12 Ram . | . . . . . . . . . . . . . . . . . . . . . . . . . Kick 6 | . . . . . 4 . . . . . . . . . . . . . . . 2 . . . Crush . | . . . . . . . . . . . . . . . . . . . . . . . . . Escape Stasis 21 | . . . . . . . . . . . . . . . . 15 . . . . . 4 . 2 Rewire 37 | . . . . . . 14 . . . . . 11 . . . . . . . . . 8 1 3 Trap 101 | . . . . . 2 46 . . . . 15 . . . . 16 1 . . 1 11 9 . . Miscellaneous . | . . . . . . . . . . . . . . . . . . . . . . . . . Route ------- -11/Scrapyard -10/Materials (discovered 5 exits: [*Mat x3] / [*Min x2]) -10/Mines -10/Exiles -9/Mines -8/Materials (discovered 3 exits: *Fac x3) -7/Factory (discovered 4 exits: *Fac / *Sto / *Low x2) -7/Lower Caves -7/Lower Caves (discovered 2 exits: *Fac / *Zio) -7/Zion -6/Proximity Caves -6/Factory -6/Lower Caves -6/Lower Caves (discovered 2 exits: *Fac / *Dat) -6/Data Miner -5/Proximity Caves -5/Factory -5/Upper Caves -5/Upper Caves (discovered 2 exits: *Fac / *Zhi) -5/Zhirov -4/Proximity Caves -4/Factory (discovered 5 exits: Res x2 / Upp / Ext / Gar) -4/Garrison (discovered 3 exits: *Fac x3) -4/Factory (discovered 4 exits: Upp x2 / *Ext x2) -4/Extension History --------- Turn | Location | Event 10 | -11/Scrapyard | Discovered new exit (range 15) 164 | -11/Scrapyard | Entered Materials 205 | -10/Materials | Discovered new exit (range 14) 313 | -10/Materials | Build established: Mutant 315 | -10/Materials | Discovered new exit (range 12) 498 | -10/Materials | Discovered new exit (range 16) 773 | -10/Materials | Discovered new exit (range 16) 1058 | -10/Materials | Discovered new exit (range 9) 1118 | -10/Materials | Entered Mines 1119 | -10/Mines | Met a Derelict testing a Signal Generator 1123 | -10/Mines | Found Signal Generator 1173 | -10/Mines | Found a damaged Exp. Sensor Array with a note attached 1176 | -10/Mines | Found Prototype Device 1215 | -10/Mines | Assembled infested the area 1252 | -10/Mines | Identified Exp. Sensor Array 1349 | -10/Mines | Found a hidden stash of uninstalled traps 1379 | -10/Mines | Deemed a non-threat by the Exiles lab entrance 1379 | -10/Mines | Discovered new exit (range 5) 1386 | -10/Mines | Entered Exiles 1386 | -10/Exiles | Accompanied by 1 ally 1414 | -10/Exiles | Met 8R-AWN 1432 | -10/Exiles | Met EX-HEX 1465 | -10/Exiles | Met EX-BIN 1513 | -10/Exiles | Met EX-DEC 1547 | -10/Exiles | Visited The Gauntlet 1804 | -10/Exiles | Discovered new exit (range 15) 1819 | -10/Exiles | Entered Mines 1819 | -9/Mines | Accompanied by 1 ally 1890 | -9/Mines | Discovered new exit (range 8) 1904 | -9/Mines | Received a Mining Laser from a helpful Derelict 1968 | -9/Mines | Entered Materials 1968 | -8/Materials | Accompanied by 1 ally 1968 | -8/Materials | Evolved 4 slots: Propulsion x1, Utility x2, Weapon x1 2188 | -8/Materials | Lost 4 parts (1n3w) 2531 | -8/Materials | Discovered new exit (range 10) 2706 | -8/Materials | Build established: Scavenger-Skirmisher 3267 | -8/Materials | Destroyed 8 combat bots 3314 | -8/Materials | Discovered new exit (range 8) 3335 | -8/Materials | Identified exit to Factory 3711 | -8/Materials | Discovered exit to Factory (range 3) 4265 | -8/Materials | Build established: Skirmisher 4266 | -8/Materials | Entered Factory 4266 | -7/Factory | Evolved 2 slots: Propulsion x1, Utility x1 4685 | -7/Factory | Lost 4 parts (1n3w) 4931 | -7/Factory | Lost 4 parts (2n2w) 5198 | -7/Factory | Discovered new exit (range 5) 5203 | -7/Factory | Identified exit to Storage 5264 | -7/Factory | Build established: Scavenger-Skirmisher 5453 | -7/Factory | Identified exit to Lower Caves 5458 | -7/Factory | Discovered new exit (range 17) 5466 | -7/Factory | First assault squad dispatched 5515 | -7/Factory | Identified exit to Factory 6075 | -7/Factory | Entered Lower Caves 6097 | -7/Lower Caves | Learned Factory trap positions 6626 | -7/Lower Caves | Learned Armory stockpile data 6626 | -7/Lower Caves | Learned Factory security intel 6626 | -7/Lower Caves | Learned Armory garrison access intel 6857 | -7/Lower Caves | Build established: Scavenger-Mutant 7247 | -7/Lower Caves | Build established: Scavenger-Skirmisher 7501 | -7/Lower Caves | Discovered new exit (range 20) 7680 | -7/Lower Caves | Identified exit to Lower Caves 7682 | -7/Lower Caves | Entered another Lower Caves area 8049 | -7/Lower Caves | Build established: Scavenger-Mutant 8772 | -7/Lower Caves | Learned Factory garrison access intel 8852 | -7/Lower Caves | Discovered new exit (range 15) 8868 | -7/Lower Caves | Identified exit to Zion 8966 | -7/Lower Caves | Build established: Mutant 9035 | -7/Lower Caves | Core integrity fell below 50% 9166 | -7/Lower Caves | Learned Factory emergency access door positions 9723 | -7/Lower Caves | Attracted the attention of an 0b10 checkpoint 10520 | -7/Lower Caves | Build established: Scavenger-Mutant 10865 | -7/Lower Caves | Entered Zion 10865 | -7/Zion | Accompanied by 1 ally 11093 | -7/Zion | System corruption cleaned by Quarantine Array 11212 | -7/Zion | Build established: Mutant 11356 | -7/Zion | Received a visual enhancement algorithm 11438 | -7/Zion | Learned location of 1 exit from Proximity Caves 11853 | -7/Zion | Build established: Derelict-Mutant 12230 | -7/Zion | Found Prototype Energy Gun 12252 | -7/Zion | Discovered new exit (range 16) 12269 | -7/Zion | Identified exit to Proximity Caves 12280 | -7/Zion | Entered Proximity Caves 12280 | -6/Proximity Caves | Accompanied by 1 ally 12567 | -6/Proximity Caves | Build established: Derelict-Skirmisher 13082 | -6/Proximity Caves | Learned Factory emergency access door positions 13170 | -6/Proximity Caves | Build established: Derelict-Mutant 13733 | -6/Proximity Caves | Entered Factory 13733 | -6/Factory | Evolved 2 slots: Power x1, Utility x1 13734 | -6/Factory | Loaded intel: 83 trap records 13737 | -6/Factory | Loaded intel: 4 garrison access locations 14152 | -6/Factory | Discovered new exit (range 15) 14176 | -6/Factory | Identified exit to Lower Caves 14347 | -6/Factory | Entered Lower Caves 14533 | -6/Lower Caves | Build established: Mutant 14788 | -6/Lower Caves | Encountered a Warlord checkpoint 15038 | -6/Lower Caves | Discovered new exit (range 21) 15564 | -6/Lower Caves | Attacked by a delusional Derelict stockpiling Unaware 15855 | -6/Lower Caves | Attracted the attention of an 0b10 checkpoint 15863 | -6/Lower Caves | Learned Factory emergency access door positions 16127 | -6/Lower Caves | Build established: Commander-Tank 16440 | -6/Lower Caves | Identified exit to Lower Caves 16469 | -6/Lower Caves | Entered another Lower Caves area 16469 | -6/Lower Caves | Accompanied by 4 allies 16496 | -6/Lower Caves | Discovered new exit (range 24) 16573 | -6/Lower Caves | Build established: Commander-Mutant 16675 | -6/Lower Caves | Learned Factory emergency access door positions 16704 | -6/Lower Caves | Learned location of Armory (-3) 16704 | -6/Lower Caves | Learned Factory security intel 16704 | -6/Lower Caves | Learned Research security intel 16704 | -6/Lower Caves | Learned Extension security intel 16704 | -6/Lower Caves | Learned Factory terminal intel 16740 | -6/Lower Caves | Learned Factory stockpile data 17075 | -6/Lower Caves | Encountered a Warlord checkpoint 17099 | -6/Lower Caves | Learned 4 Factory zone layouts 17321 | -6/Lower Caves | Identified exit to Factory 17661 | -6/Lower Caves | Discovered new exit (range 11) 17673 | -6/Lower Caves | Identified exit to Data Miner 17772 | -6/Lower Caves | Entered Data Miner 17772 | -6/Data Miner | Accompanied by 4 allies 17772 | -6/Data Miner | Discovered new exit (range 6) 17797 | -6/Data Miner | Met Data Miner 17818 | -6/Data Miner | Learned location of Section 7 (-2) 17818 | -6/Data Miner | Acquired the access code to Warlord's prototype stash 17854 | -6/Data Miner | Received God Mode back door access code from Data Miner 17891 | -6/Data Miner | Identified exit to Proximity Caves 17895 | -6/Data Miner | Entered Proximity Caves 17895 | -5/Proximity Caves | Accompanied by 4 allies 18029 | -5/Proximity Caves | Learned Factory machine intel 18036 | -5/Proximity Caves | Learned 4 Factory zone layouts 18198 | -5/Proximity Caves | Build established: Commander-Skirmisher 18925 | -5/Proximity Caves | Discovered exit to Factory (range 8) 18944 | -5/Proximity Caves | Escorted by Enhanced Grunt 19277 | -5/Proximity Caves | Build established: Skirmisher 19630 | -5/Proximity Caves | Build established: Scavenger-Skirmisher 19701 | -5/Proximity Caves | Entered Factory 19701 | -5/Factory | Accompanied by 1 ally 19701 | -5/Factory | Evolved 2 slots: Utility x1, Weapon x1 19704 | -5/Factory | Identified Storm Laser 19706 | -5/Factory | Loaded intel: 272 machine locations 19707 | -5/Factory | Loaded intel: 20 terminal locations 20101 | -5/Factory | Local fabrication network quarantined 20197 | -5/Factory | Fabricated Exp. Sensor Array (x1) 20368 | -5/Factory | Discovered new exit (range 24) 20488 | -5/Factory | Identified exit to Upper Caves 20496 | -5/Factory | Entered Upper Caves 20782 | -5/Upper Caves | Encountered a Warlord checkpoint 21290 | -5/Upper Caves | Found Alien Artifact 21290 | -5/Upper Caves | Identified Core Expander 21290 | -5/Upper Caves | Installed Core Expander, added new Utility slot 21999 | -5/Upper Caves | Discovered new exit (range 5) 22014 | -5/Upper Caves | Identified exit to Upper Caves 22774 | -5/Upper Caves | Entered another Upper Caves area 22896 | -5/Upper Caves | Discovered new exit (range 5) 23409 | -5/Upper Caves | Encountered a Warlord checkpoint 23457 | -5/Upper Caves | Discovered new exit (range 6) 23472 | -5/Upper Caves | Identified exit to Zhirov 23868 | -5/Upper Caves | Learned 8 Factory zone layouts 23944 | -5/Upper Caves | Learned Factory security intel 24102 | -5/Upper Caves | Entered Zhirov 24102 | -5/Zhirov | Discovered new exit (range 3) 24124 | -5/Zhirov | Met Zhirov 24176 | -5/Zhirov | Learned location of Quarantine (-2) 24176 | -5/Zhirov | Learned location of Testing (-3) 24176 | -5/Zhirov | Learned location of Command (-1) 24186 | -5/Zhirov | Zhirov requested help retrieving the SGEMP Prototype 24217 | -5/Zhirov | Found Alien Artifact 24218 | -5/Zhirov | Identified Integrated Dissipator 24218 | -5/Zhirov | Installed Integrated Dissipator, increased core heat dissipation (+20) 24235 | -5/Zhirov | Found Alien Artifact 24381 | -5/Zhirov | Identified exit to Proximity Caves 24383 | -5/Zhirov | Entered Proximity Caves 24615 | -4/Proximity Caves | Build established: Skirmisher 25536 | -4/Proximity Caves | Build established: Scavenger-Skirmisher 25597 | -4/Proximity Caves | Attracted the attention of an 0b10 outpost 25966 | -4/Proximity Caves | Discovered new exit (range 12) 26227 | -4/Proximity Caves | Identified exit to Factory 26228 | -4/Proximity Caves | Entered Factory 26228 | -4/Factory | Evolved 2 slots: Power x1, Weapon x1 26229 | -4/Factory | Identified exit to Research 26229 | -4/Factory | Identified exit to Extension 26581 | -4/Factory | Discovered new exit (range 21) 26689 | -4/Factory | Identified exit to Garrison 26689 | -4/Factory | Entered Garrison 26695 | -4/Garrison | Installed Relay Interface Framework 26716 | -4/Garrison | Lost 14 parts (2p3n3u6w) 26759 | -4/Garrison | Triggered checkpoint 26806 | -4/Garrison | Garrison Relay disabled 27056 | -4/Garrison | Triggered checkpoint 27210 | -4/Garrison | Triggered checkpoint 27260 | -4/Garrison | Phase Generator disabled 27323 | -4/Garrison | Discovered new exit (range 15) 27424 | -4/Garrison | Triggered checkpoint 27475 | -4/Garrison | Garrison Relay disabled 27560 | -4/Garrison | Discovered new exit (range 13) 27612 | -4/Garrison | Triggered checkpoint 27659 | -4/Garrison | Garrison Relay disabled 27762 | -4/Garrison | Triggered checkpoint 27844 | -4/Garrison | Garrison Relay disabled 27871 | -4/Garrison | Discovered new exit (range 15) 27934 | -4/Garrison | Triggered checkpoint 28028 | -4/Garrison | Triggered checkpoint 28068 | -4/Garrison | Lost 3 parts (2p1w) 28273 | -4/Garrison | Identified Transdimensional Reconstructor 28273 | -4/Garrison | Warped through subspace 28369 | -4/Garrison | Entered Factory 28369 | -4/Factory | Accompanied by 6 allies 29058 | -4/Factory | Core integrity fell below 50% 29170 | -4/Factory | Identified exit to Upper Caves 29418 | -4/Factory | Entered Extension 29418 | -4/Extension | Accompanied by 2 allies 29433 | -4/Extension | Disrupted transfer network 29511 | -4/Extension | Rescued a captive Derelict 29553 | -4/Extension | Rescued a captive Derelict 29560 | -4/Extension | Build established: Scavenger-Mutant 29756 | -4/Extension | Rescued a captive Derelict 29757 | -4/Extension | Rescued a captive Derelict 29788 | -4/Extension | Rescued a captive Derelict 29804 | -4/Extension | Spotted B-86 Titan 29805 | -4/Extension | Lost 3 parts (1p1n1w) 29816 | -4/Extension | Spotted B-86 Titan 29840 | -4/Extension | Core integrity fell below 20% 29846 | -4/Extension | Destroyed by B-86 Titan with Hardcell Cannon Last Messages --------------- 29837_ Acquired KE Penetrator. 29838_ B-86 Titan exits siege mode. 29838_ Slug penetrates 7J-VCI(b). 29838_ Dropped Imp. Datajack. 29839_ Dropped KE Penetrator. 29839_ Penetrated by Slug. 29839_ Slug penetrates Wall. 29839_ Penetrated by Slug. 29839_ Hpw. Shock Rifle destroyed. 29840_ Dropped Myomer Leg. 29841_ Slug penetrates 7J-VCI(b). 29842_ W-44 Eye destroyed. 29842_ Machine disabled. 29843_ 7J-VCI(b) heat short circuits Imp. Treads. 29843_ Knocked back. 29843_ Penetrated by Slug. 29843_ Slug penetrates Wall. 29843_ R-10 Processor collects Myomer Leg. 29844_ B-86 Titan activates siege mode. 29844_ Slug penetrates 7J-VCI(b). Map ----- +----------------------------------------------------+ | ???### * ""#?????????????????????????????????? | | ?????# % T"#?????????????????????????????????? | | ??#### % ""#?????????????????????????????????? | | ??#""" ! ""#?????????????????????????????????? | | ??#"Y !! "##?????????????????????????????????? | | ??#""" !! ##??????????????????????????????????? | | ??#### %#???????????????????????????????????? | | ?????# ##??????????????????????????????????? | | ?????## ###" %#???????? ?????????????????????????? | | ??????# T### ##???????? ?????????????????????????? | | ??????# ##?# ##???????? ?????????????????????????? | | ??????# #??# #????????? ?????????????????????????? | | ??????###??# #????????# +????????????????????????? | | ???????????# #????????# #????????????????????????? | | ???????????#R#????????# #????????????????????????? | | ???????????# #????????# #????????????????????????? | | ???????????# #????????# #????????????????????????? | | ??????????## ########?# #????????????????????????? | | ?????????###o### ## ### ###??????????????????????? | | ?????????# %[/= R " ""#??????????????????????? | | ?????????# !%%%bY " " #??????????????????????? | | ?????????# [!*= = w #??????????????????????? | | ????????#" %! #??????????????????????? | | ????????## ############???????????? | | ?????? ????????? | | ??? @ ????????? | | ??? ????????? | | ??? ????????? | | ??? BB ?????????? | | ???######" BB BB ##############?????????? | | ????????## BB #??????????????????????? | | ?????????# #??????????????????????? | | ?????????# #??????????????????????? | | ?????????# #??????????????????????? | | ?????????###### #"""#######??????????????????????? | | ??????????????##?????????????????????????????????? | | ?????????????????????????????????????????????????? | | | | | | | | | | | | | | | | | | | | | | | | | | | +----------------------------------------------------+ Best States ------------- Heat Dissipation 158 Energy Generation 46 Energy Capacity 410 Matter Stores 300 Matter Capacity 300 Sight Range 16 Robot Scan Range 30 Terrain Scan Range 24 Terrain Scan Density 210 Corruption Prevention 12 Armor Coverage 450 Resistance: TH 15 Evasion (%) 40 Targeting Accuracy 8 Armor Integrity Analysis 33 Energy Filtering 50 Offensive Hacking 14 Relay Coupler Types 73 Relay Coupler Value 3 Item Schematics ----------------- Exp. Sensor Array | -8/Materials | Scanalyzed Adv. Terrain Scanner | -8/Materials | Scanalyzed Hvy. Beamcaster | -7/Zion | Free Battle Rifle | -7/Zion | Free Slug Cannon | -7/Zion | Free Enh. Flamer | -7/Zion | Free Ripper | -7/Zion | Free Exp. Terrain Scan Processor | -6/Data Miner | Free Triangulator | -6/Data Miner | Free Mni. Smartbomb Launcher | -6/Data Miner | Free Plasma Sword | -6/Data Miner | Free Cmb. Gravmag System | -6/Data Miner | Free Exp. Flexi-carbon Leg | -6/Data Miner | Free Lgt. Regenerative Plating | -6/Data Miner | Free Combat Drone Bay | -6/Data Miner | Free Adv. Plasma Cannon | -5/Factory | Scanalyzed Assault Drone Bay | -5/Zhirov | Free Exp. Heat Sink | -5/Zhirov | Free Exp. Optical Array | -5/Zhirov | Free Imp. Arc Thrower | -5/Zhirov | Free Robot Schematics ------------------ S-27 Virus | -6/Data Miner | Free G-50 Soldier | -6/Data Miner | Free I-36 Angel | -6/Data Miner | Free Fabricated ------------ Exp. Sensor Array | x1 | -5/Factory Alien Tech Used ----------------- Core Expander Integrated Dissipator Transdimensional Reconstructor Achievements -------------- Hehehe Challenges ------------ None Game ------ Seed ReclamationIntegritySplitter Manual? 0 Play Time 05:01:00 Cumulative 159.6 hours Start 2020.12.05 @ 10:04:44 End 2020.12.06 @ 13:33:00 Sessions 9 Manual Loads 0 Difficulty Rogue Special Mode None Game No. 45 Rogue 22 Adventurer 23 Explorer 0 Win Type - Total 5 Types 5/0/0/0/0/0/0/0/0 Lore% 81 Gallery% 82 Achievement% 64 Wizard Run 0 Options --------- ASCII 0 Keyboard 0 Movement Mouse Keybinds 0 Fullscreen 1 Font 18/SmallcapsGlow Map View 76x50 Tactical HUD 1 Map Filters NONE Filters NONE Steam 1 RUN: c02abb2b-ee19-4d8b-9d4f-5cb48c483109